[Event "Minior-SM 2025"]
[Site "Uppsala, Sweden"]
[Date "2025.07.03"]
[Round "5.3"]
[White "Dahlin, Emil"]
[Black "Jackman, Jonathan"]
[Result "1-0"]
[TimeControl "90 min for 40 move + 30 min with an increment of 30 sec starting move 1"]
[WhiteFideId "1771035"]
[BlackFideId "1779648"]
[WhiteElo "1657"]
[BlackElo "1409"]

1. e4 {[%clk 01:30:57]} {[%emt 00:00:02]} c6 {[%clk 01:30:54]} {[%emt
00:00:07]} 2. Nf3 {[%clk 01:31:17]} {[%emt 00:00:09]} d5 {[%clk 01:31:22]}
{[%emt 00:00:02]} 3. exd5 {[%clk 01:31:38]} {[%emt 00:00:09]} cxd5 {[%clk
01:31:49]} {[%emt 00:00:03]} 4. Ne5 {[%clk 01:31:38]} {[%emt 00:00:29]} Nf6
{[%clk 01:31:02]} {[%emt 00:01:18]} 5. d4 {[%clk 01:31:27]} {[%emt 00:00:41]}
Nc6 {[%clk 01:30:31]} {[%emt 00:01:01]} 6. c3 {[%clk 01:29:36]} {[%emt
00:02:20]} Nxe5 {[%clk 01:29:30]} {[%emt 00:01:31]} 7. dxe5 {[%clk 01:29:17]}
{[%emt 00:00:49]} Ng4 {[%clk 01:28:20]} {[%emt 00:01:41]} 8. Bb5+ {[%clk
01:19:52]} {[%emt 00:09:55]} Bd7 {[%clk 01:28:38]} {[%emt 00:00:12]} 9. Qxd5
{[%clk 01:16:57]} {[%emt 00:03:25]} Bxb5 {[%clk 01:27:40]} {[%emt 00:01:28]} 10.
Qxb5+ {[%clk 01:16:20]} {[%emt 00:01:06]} Qd7 {[%clk 01:28:09]} {[%emt
00:00:02]} 11. Qxd7+ {[%clk 01:15:01]} {[%emt 00:01:49]} Kxd7 {[%clk 01:28:38]}
{[%emt 00:00:02]} 12. f4 {[%clk 01:12:06]} {[%emt 00:03:24]} e6 {[%clk
01:27:32]} {[%emt 00:01:37]} 13. h3 {[%clk 01:09:24]} {[%emt 00:03:11]} Nh6
{[%clk 01:27:52]} {[%emt 00:00:10]} 14. Be3 {[%clk 01:07:10]} {[%emt 00:02:44]}
Nf5 {[%clk 01:27:21]} {[%emt 00:01:02]} 15. Bf2 {[%clk 01:05:15]} {[%emt
00:02:26]} h5 {[%clk 01:26:42]} {[%emt 00:01:08]} 16. Nd2 {[%clk 01:01:00]}
{[%emt 00:04:44]} g6 {[%clk 01:25:13]} {[%emt 00:02:01]} 17. O-O-O {[%clk
00:53:05]} {[%emt 00:08:24]} Bh6 {[%clk 01:24:25]} {[%emt 00:01:18]} 18. g4
{[%clk 00:50:42]} {[%emt 00:02:52]} hxg4 {[%clk 01:23:11]} {[%emt 00:01:44]} 19.
hxg4 {[%emt 00:02:28]} Ne7 {[%clk 01:22:27]} {[%emt 00:01:13]} 20. g5 {[%clk
00:46:03]} {[%emt 00:03:14]} Bg7 {[%clk 01:22:36]} {[%emt 00:00:21]} 21. Ne4+
{[%clk 00:39:15]} {[%emt 00:07:17]} Nd5 {[%clk 01:20:57]} {[%emt 00:02:10]} 22.
c4 {[%clk 00:31:10]} {[%emt 00:08:35]} Rxh1 {[%clk 01:19:35]} {[%emt 00:01:52]}
23. Rxh1 {[%clk 00:24:20]} {[%emt 00:07:19]} Nxf4 {[%clk 01:17:49]} {[%emt
00:02:17]} 24. Rh7 {[%clk 00:18:36]} {[%emt 00:06:14]} Bxe5 {[%clk 01:15:00]}
{[%emt 00:03:19]} 25. Rxf7+ {[%clk 00:17:50]} {[%emt 00:01:16]} Kc6 {[%clk
01:14:35]} {[%emt 00:00:55]} 26. Kc2 {[%clk 00:16:41]} {[%emt 00:01:39]} Ne2
{[%clk 01:12:05]} {[%emt 00:03:00]} 27. b4 {[%clk 00:15:15]} {[%emt 00:01:55]}
b5 {[%clk 01:10:52]} {[%emt 00:01:44]} 28. cxb5+ {[%clk 00:13:08]} {[%emt
00:02:37]} Kxb5 {[%clk 01:10:42]} {[%emt 00:00:40]} 29. Rb7+ {[%clk 00:12:09]}
{[%emt 00:01:29]} Ka4 {[%clk 01:08:55]} {[%emt 00:02:17]} 30. Nc5+ {[%clk
00:10:02]} {[%emt 00:02:36]} Ka3 {[%clk 01:09:21]} {[%emt 00:00:05]} 31. Nxe6
{[%clk 00:09:39]} {[%emt 00:00:53]} Nf4 {[%clk 01:06:09]} {[%emt 00:03:42]} 32.
Rb5 {[%clk 00:07:30]} {[%emt 00:02:39]} Bd6 {[%clk 01:04:34]} {[%emt 00:02:05]}
33. Nxf4 {[%clk 00:07:00]} {[%emt 00:00:59]} Bxf4 {[%clk 01:04:55]} {[%emt
00:00:08]} 34. Ra5+ {[%clk 00:07:11]} {[%emt 00:00:20]} Kxb4 {[%clk 01:05:05]}
{[%emt 00:00:21]} 35. Be1+ {[%clk 00:07:30]} {[%emt 00:00:10]} Kc4 {[%clk
01:04:56]} {[%emt 00:00:39]} 36. Ra4+ {[%clk 00:07:50]} {[%emt 00:00:10]} Kd5
{[%clk 01:04:59]} {[%emt 00:00:27]} 37. Rxf4 {[%clk 00:08:14]} {[%emt
00:00:06]} Re8 {[%clk 01:04:32]} {[%emt 00:00:57]} 38. Bd2 {[%clk 00:07:25]}
{[%emt 00:01:19]} Kc6 {[%clk 01:03:18]} {[%emt 00:01:44]} 39. Rf6+ {[%clk
00:07:35]} {[%emt 00:00:19]} Kb5 {[%clk 01:03:43]} {[%emt 00:00:06]} 40. Rxg6
{[%clk 00:07:35]} {[%emt 00:00:30]} Ka4 {[%clk 01:03:27]} {[%emt 00:00:47]} 41.
Ra6+ {[%clk 00:07:25]} {[%emt 00:00:39]} 1-0

[Event "Minior-SM 2025"]
[Site "Uppsala, Sweden"]
[Date "2025.07.03"]
[Round "5.4"]
[White "Thamarai, Yohan"]
[Black "Bardhan, Sayak Raj"]
[Result "1-0"]
[TimeControl "90 min for 40 move + 30 min with an increment of 30 sec starting move 1"]
[WhiteFideId "1773011"]
[BlackFideId "1771850"]
[WhiteElo "1761"]
[BlackElo "1658"]

1. e4 {[%clk 01:30:56]} {[%emt 00:00:03]} c6 {[%clk 01:30:38]} {[%emt
00:00:15]} 2. Nc3 {[%clk 01:31:20]} {[%emt 00:00:12]} d5 {[%clk 01:30:59]}
{[%emt 00:00:11]} 3. Nf3 {[%clk 01:31:44]} {[%emt 00:00:05]} Bg4 {[%clk
01:30:22]} {[%emt 00:01:07]} 4. h3 {[%clk 01:32:04]} {[%emt 00:00:10]} Bxf3
{[%clk 01:30:45]} {[%emt 00:00:07]} 5. Qxf3 {[%clk 01:32:25]} {[%emt 00:00:09]}
e6 {[%clk 01:31:08]} {[%emt 00:00:06]} 6. d4 {[%clk 01:32:34]} {[%emt
00:00:22]} Nf6 {[%clk 01:31:23]} {[%emt 00:00:15]} 7. exd5 {[%clk 01:32:49]}
{[%emt 00:00:14]} cxd5 {[%clk 01:31:38]} {[%emt 00:00:16]} 8. Bd3 {[%clk
01:33:03]} {[%emt 00:00:16]} Nc6 {[%clk 01:31:50]} {[%emt 00:00:16]} 9. Ne2
{[%clk 01:33:26]} {[%emt 00:00:10]} Be7 {[%clk 01:29:17]} {[%emt 00:03:03]} 10.
c3 {[%clk 01:33:19]} {[%emt 00:00:36]} O-O {[%clk 01:29:25]} {[%emt 00:00:22]}
11. Bf4 {[%clk 01:33:02]} {[%emt 00:00:48]} a6 {[%clk 01:25:23]} {[%emt
00:04:31]} 12. O-O {[%clk 01:29:25]} {[%emt 00:04:07]} b5 {[%clk 01:23:38]}
{[%emt 00:02:16]} 13. b4 {[%clk 01:29:32]} {[%emt 00:00:22]} Re8 {[%clk
01:01:23]} {[%emt 00:22:46]} 14. Rfc1 {[%clk 01:23:42]} {[%emt 00:06:15]} Nd7
{[%clk 00:57:34]} {[%emt 00:04:23]} 15. Ng3 {[%clk 01:21:47]} {[%emt 00:02:25]}
Nf8 {[%clk 00:54:30]} {[%emt 00:03:35]} 16. Qe2 {[%clk 01:15:29]} {[%emt
00:06:47]} Qd7 {[%clk 00:47:22]} {[%emt 00:07:38]} 17. Nf1 {[%clk 01:13:59]}
{[%emt 00:01:59]} f6 {[%clk 00:38:46]} {[%emt 00:09:08]} 18. Bg3 {[%clk
01:12:52]} {[%emt 00:01:36]} e5 {[%clk 00:33:38]} {[%emt 00:05:38]} 19. dxe5
{[%clk 01:12:31]} {[%emt 00:00:51]} fxe5 {[%clk 00:34:07]} {[%emt 00:00:02]} 20.
f3 {[%clk 01:12:13]} {[%emt 00:00:48]} Bg5 {[%clk 00:32:38]} {[%emt 00:01:58]}
21. Re1 {[%clk 01:11:33]} {[%emt 00:01:10]} Re7 {[%clk 00:28:26]} {[%emt
00:04:42]} 22. Bf2 {[%clk 01:09:07]} {[%emt 00:02:56]} Ne6 {[%clk 00:26:59]}
{[%emt 00:01:57]} 23. Qc2 {[%clk 01:07:12]} {[%emt 00:02:25]} h6 {[%clk
00:25:36]} {[%emt 00:01:53]} 24. Rad1 {[%clk 01:03:29]} {[%emt 00:04:13]} Rf8
{[%clk 00:20:12]} {[%emt 00:05:54]} 25. h4 {[%clk 01:00:03]} {[%emt 00:03:56]}
Bf6 {[%clk 00:20:31]} {[%emt 00:00:10]} 26. Nd2 {[%clk 01:00:14]} {[%emt
00:00:20]} Ref7 {[%clk 00:19:44]} {[%emt 00:01:17]} 27. Bg6 {[%clk 01:00:09]}
{[%emt 00:00:35]} Re7 {[%clk 00:19:59]} {[%emt 00:00:15]} 28. Nb3 {[%clk
01:00:30]} {[%emt 00:00:08]} Rc8 {[%clk 00:17:20]} {[%emt 00:03:09]} 29. Bc5
{[%clk 00:59:12]} {[%emt 00:01:48]} Nxc5 {[%clk 00:17:25]} {[%emt 00:00:25]} 30.
Nxc5 {[%clk 00:59:36]} {[%emt 00:00:06]} Qd6 {[%clk 00:17:34]} {[%emt
00:00:21]} 31. Bf5 {[%clk 00:59:40]} {[%emt 00:00:27]} Ra8 {[%clk 00:17:21]}
{[%emt 00:00:43]} 32. Qb3 {[%clk 00:57:15]} {[%emt 00:02:54]} Rd8 {[%clk
00:16:17]} {[%emt 00:01:34]} 33. Ne4 {[%clk 00:56:41]} {[%emt 00:01:03]} Qc7
{[%clk 00:16:05]} {[%emt 00:00:43]} 34. Rxd5 {[%clk 00:56:39]} {[%emt
00:00:33]} Rxd5 {[%clk 00:14:44]} {[%emt 00:01:50]} 35. Qxd5+ {[%clk 00:57:01]}
{[%emt 00:00:09]} Kh8 {[%clk 00:15:09]} {[%emt 00:00:03]} 36. Rd1 {[%clk
00:55:48]} {[%emt 00:01:44]} Re8 {[%clk 00:14:16]} {[%emt 00:01:23]} 37. Qd6
{[%clk 00:55:14]} {[%emt 00:01:04]} Qxd6 {[%clk 00:13:09]} {[%emt 00:01:37]} 38.
Rxd6 {[%clk 00:55:29]} {[%emt 00:00:15]} Ne7 {[%clk 00:13:32]} {[%emt
00:00:07]} 39. Nxf6 {[%clk 00:55:04]} {[%emt 00:00:56]} gxf6 {[%clk 00:13:50]}
{[%emt 00:00:12]} 40. Be4 {[%clk 00:53:34]} {[%emt 00:01:59]} Kg7 {[%clk
00:14:03]} {[%emt 00:00:17]} 41. Rxa6 {[%clk 00:53:42]} {[%emt 00:00:23]} f5
{[%clk 00:14:09]} {[%emt 00:00:23]} 42. Bc6 {[%clk 00:53:43]} {[%emt 00:00:29]}
Rc8 {[%clk 00:14:25]} {[%emt 00:00:14]} 43. Bxb5 {[%clk 00:53:52]} {[%emt
00:00:22]} Rxc3 {[%clk 00:14:38]} {[%emt 00:00:17]} 44. Ra7 {[%clk 00:54:10]}
{[%emt 00:00:12]} Kf6 {[%clk 00:14:57]} {[%emt 00:00:10]} 45. Bd7 {[%clk
00:53:31]} {[%emt 00:01:09]} Rc4 {[%clk 00:14:27]} {[%emt 00:01:00]} 46. b5
{[%clk 00:53:36]} {[%emt 00:00:25]} Rb4 {[%clk 00:14:29]} {[%emt 00:00:29]} 47.
a4 {[%clk 00:53:24]} {[%emt 00:00:42]} e4 {[%clk 00:14:54]} {[%emt 00:00:04]}
48. Ra6+ {[%clk 00:53:49]} {[%emt 00:00:05]} Kg7 {[%clk 00:15:09]} {[%emt
00:00:15]} 49. Re6 {[%clk 00:53:58]} {[%emt 00:00:21]} Ng6 {[%clk 00:14:58]}
{[%emt 00:00:40]} 50. Bc6 {[%clk 00:52:43]} {[%emt 00:01:46]} exf3 {[%clk
00:15:13]} {[%emt 00:00:15]} 51. Bxf3 {[%clk 00:52:52]} {[%emt 00:00:21]} Rxa4
{[%clk 00:15:38]} {[%emt 00:00:05]} 52. h5 {[%clk 00:53:05]} {[%emt 00:00:17]}
Nf8 {[%clk 00:15:28]} {[%emt 00:00:41]} 53. Ra6 {[%clk 00:53:23]} {[%emt
00:00:12]} Rb4 {[%clk 00:15:49]} {[%emt 00:00:09]} 54. b6 {[%clk 00:53:49]}
{[%emt 00:00:05]} Ne6 {[%clk 00:15:30]} {[%emt 00:00:47]} 55. b7 {[%clk
00:52:45]} {[%emt 00:01:35]} Nc5 {[%clk 00:15:48]} {[%emt 00:00:12]} 56. Ra8
{[%clk 00:51:21]} {[%emt 00:01:53]} Nxb7 {[%clk 00:16:00]} {[%emt 00:00:19]} 57.
Ra7 {[%clk 00:50:38]} {[%emt 00:01:13]} 1-0

[Event "Minior-SM 2025"]
[Site "Uppsala, Sweden"]
[Date "2025.07.04"]
[Round "6.1"]
[White "Andreasson, Leo"]
[Black "Leon, David"]
[Result "0-1"]
[TimeControl "90 min for 40 move + 30 min with an increment of 30 sec starting move 1"]
[WhiteFideId "1768980"]
[BlackFideId "1785338"]
[WhiteElo "1636"]
[BlackElo "1734"]

1. c4 {[%clk 01:30:55]} {[%emt 00:00:05]} e5 {[%clk 01:30:56]} {[%emt
00:00:05]} 2. Nc3 {[%clk 01:30:59]} {[%emt 00:00:25]} Bb4 {[%clk 01:31:16]}
{[%emt 00:00:11]} 3. a3 {[%clk 01:30:40]} {[%emt 00:00:49]} Bxc3 {[%clk
01:31:24]} {[%emt 00:00:22]} 4. bxc3 {[%clk 01:30:59]} {[%emt 00:00:11]} d6
{[%clk 01:28:28]} {[%emt 00:03:25]} 5. g3 {[%clk 01:27:38]} {[%emt 00:03:51]}
Ne7 {[%clk 01:27:36]} {[%emt 00:01:23]} 6. Bg2 {[%clk 01:26:58]} {[%emt
00:01:09]} Nbc6 {[%clk 01:25:00]} {[%emt 00:03:06]} 7. d4 {[%clk 01:25:13]}
{[%emt 00:02:15]} O-O {[%clk 01:20:12]} {[%emt 00:05:18]} 8. e4 {[%clk
01:20:46]} {[%emt 00:04:57]} b6 {[%clk 01:17:37]} {[%emt 00:03:05]} 9. Nf3
{[%clk 01:07:51]} {[%emt 00:13:24]} Ba6 {[%clk 01:13:07]} {[%emt 00:05:02]} 10.
Qa4 {[%clk 01:04:16]} {[%emt 00:04:05]} Na5 {[%clk 01:03:29]} {[%emt 00:10:07]}
11. Nd2 {[%clk 01:02:55]} {[%emt 00:01:51]} c6 {[%clk 00:53:14]} {[%emt
00:10:45]} 12. Nb3 {[%clk 00:51:22]} {[%emt 00:12:03]} Bxc4 {[%clk 00:40:59]}
{[%emt 00:12:45]} 13. Nxa5 {[%clk 00:45:38]} {[%emt 00:06:14]} Bb5 {[%clk
00:40:56]} {[%emt 00:00:33]} 14. Nxc6 {[%clk 00:39:56]} {[%emt 00:06:12]} Bxa4
{[%clk 00:36:59]} {[%emt 00:04:27]} 15. Nxd8 {[%clk 00:39:52]} {[%emt
00:00:34]} Rfxd8 {[%clk 00:36:57]} {[%emt 00:00:32]} 16. O-O {[%clk 00:36:46]}
{[%emt 00:03:36]} Rac8 {[%clk 00:33:14]} {[%emt 00:04:13]} 17. Bb2 {[%clk
00:32:03]} {[%emt 00:05:14]} Nc6 {[%clk 00:25:33]} {[%emt 00:08:10]} 18. f4
{[%clk 00:25:29]} {[%emt 00:07:04]} f6 {[%clk 00:24:10]} {[%emt 00:01:53]} 19.
fxe5 {[%clk 00:24:30]} {[%emt 00:01:30]} fxe5 {[%clk 00:23:37]} {[%emt
00:01:02]} 20. Bh3 {[%clk 00:23:35]} {[%emt 00:01:25]} Rb8 {[%clk 00:16:59]}
{[%emt 00:07:08]} 21. Be6+ {[%clk 00:22:06]} {[%emt 00:01:59]} Kh8 {[%clk
00:17:04]} {[%emt 00:00:24]} 22. Rf7 {[%clk 00:22:03]} {[%emt 00:00:33]} Rf8
{[%clk 00:14:15]} {[%emt 00:03:19]} 23. Raf1 {[%clk 00:21:15]} {[%emt
00:01:18]} Rxf7 {[%clk 00:13:52]} {[%emt 00:00:54]} 24. Rxf7 {[%clk 00:20:57]}
{[%emt 00:00:48]} Re8 {[%clk 00:10:09]} {[%emt 00:04:13]} 25. d5 {[%clk
00:11:52]} {[%emt 00:09:36]} Nd8 {[%clk 00:08:08]} {[%emt 00:02:31]} 26. Rxa7
{[%clk 00:11:05]} {[%emt 00:01:16]} Bb5 {[%clk 00:07:00]} {[%emt 00:01:38]} 27.
a4 {[%clk 00:09:28]} {[%emt 00:02:07]} Bd3 {[%clk 00:06:54]} {[%emt 00:00:36]}
28. Ba3 {[%clk 00:08:15]} {[%emt 00:01:43]} Nxe6 {[%clk 00:05:21]} {[%emt
00:02:02]} 29. dxe6 {[%clk 00:08:30]} {[%emt 00:00:16]} Bxe4 {[%clk 00:05:40]}
{[%emt 00:00:11]} 30. Bxd6 {[%clk 00:08:05]} {[%emt 00:00:55]} Rxe6 {[%clk
00:06:00]} {[%emt 00:00:10]} 31. Rd7 {[%clk 00:05:52]} {[%emt 00:02:43]} h6
{[%clk 00:05:32]} {[%emt 00:00:58]} 32. Bc7 {[%clk 00:04:51]} {[%emt 00:01:31]}
Bc2 {[%clk 00:04:58]} {[%emt 00:01:03]} 33. Rd8+ {[%clk 00:04:27]} {[%emt
00:00:55]} Kh7 {[%clk 00:05:23]} {[%emt 00:00:06]} 34. Ra8 {[%clk 00:03:48]}
{[%emt 00:01:08]} e4 {[%clk 00:05:36]} {[%emt 00:00:17]} 35. Ra6 {[%clk
00:03:14]} {[%emt 00:01:04]} e3 {[%clk 00:05:15]} {[%emt 00:00:51]} 36. Rxb6
{[%clk 00:03:17]} {[%emt 00:00:28]} Re7 {[%clk 00:05:14]} {[%emt 00:00:31]} 37.
Rb2 {[%clk 00:02:22]} {[%emt 00:01:24]} e2 {[%clk 00:05:24]} {[%emt 00:00:20]}
38. Rb3 0-1

[Event "Minior-SM 2025"]
[Site "Uppsala, Sweden"]
[Date "2025.07.04"]
[Round "6.2"]
[White "Thamarai, Yohan"]
[Black "Dahlin, Emil"]
[Result "1-0"]
[TimeControl "90 min for 40 move + 30 min with an increment of 30 sec starting move 1"]
[WhiteFideId "1773011"]
[BlackFideId "1771035"]
[WhiteElo "1761"]
[BlackElo "1657"]

1. e4 {[%clk 01:30:46]} {[%emt 00:00:13]} e5 {[%clk 01:30:50]} {[%emt
00:00:10]} 2. Bc4 {[%clk 01:31:10]} {[%emt 00:00:07]} Nc6 {[%clk 01:31:03]}
{[%emt 00:00:18]} 3. Nf3 {[%clk 01:31:33]} {[%emt 00:00:06]} Nf6 {[%clk
01:31:18]} {[%emt 00:00:15]} 4. d4 {[%clk 01:31:52]} {[%emt 00:00:11]} exd4
{[%clk 01:31:39]} {[%emt 00:00:09]} 5. O-O {[%clk 01:32:14]} {[%emt 00:00:08]}
Nxe4 {[%clk 01:30:16]} {[%emt 00:01:52]} 6. Re1 {[%clk 01:32:33]} {[%emt
00:00:11]} d5 {[%clk 01:29:42]} {[%emt 00:01:04]} 7. Bxd5 {[%clk 01:32:53]}
{[%emt 00:00:10]} Qxd5 {[%clk 01:29:44]} {[%emt 00:00:28]} 8. Nc3 {[%clk
01:33:15]} {[%emt 00:00:08]} Qh5 {[%clk 01:29:22]} {[%emt 00:00:52]} 9. Nxe4
{[%clk 01:33:35]} {[%emt 00:00:10]} Be6 {[%clk 01:26:38]} {[%emt 00:03:14]} 10.
Bg5 {[%clk 01:33:37]} {[%emt 00:00:27]} h6 {[%clk 01:19:35]} {[%emt 00:07:34]}
11. Bf6 {[%clk 01:32:56]} {[%emt 00:01:06]} Qa5 {[%clk 01:04:14]} {[%emt
00:15:56]} 12. Nxd4 {[%clk 00:59:47]} {[%emt 00:33:39]} gxf6 {[%clk 00:40:09]}
{[%emt 00:24:35]} 13. Nxe6 {[%clk 00:57:54]} {[%emt 00:02:23]} fxe6 {[%clk
00:36:58]} {[%emt 00:03:41]} 14. Nxf6+ {[%clk 00:58:19]} {[%emt 00:00:05]} Kf7
{[%clk 00:35:59]} {[%emt 00:01:29]} 15. Qd7+ {[%clk 00:54:42]} {[%emt
00:04:06]} Be7 {[%clk 00:29:18]} {[%emt 00:07:12]} 16. Qxe6+ {[%clk 00:55:03]}
{[%emt 00:00:09]} Kf8 {[%clk 00:29:11]} {[%emt 00:00:37]} 17. Nd5 {[%clk
00:54:27]} {[%emt 00:01:05]} Bg5 {[%clk 00:21:20]} {[%emt 00:08:22]} 18. Qf5+
{[%clk 00:49:53]} {[%emt 00:05:04]} Kg7 {[%clk 00:18:48]} {[%emt 00:03:02]} 19.
Qd7+ {[%clk 00:46:40]} {[%emt 00:03:43]} Kg8 {[%clk 00:14:16]} {[%emt
00:05:03]} 20. Re6 {[%clk 00:44:54]} {[%emt 00:02:15]} Rh7 {[%clk 00:13:16]}
{[%emt 00:01:31]} 21. Rg6+ {[%clk 00:45:06]} {[%emt 00:00:18]} Kh8 {[%clk
00:13:23]} {[%emt 00:00:23]} 22. Qf5 {[%clk 00:45:08]} {[%emt 00:00:24]} Re8
{[%clk 00:13:01]} {[%emt 00:00:55]} 23. c3 {[%clk 00:45:09]} {[%emt 00:00:29]}
Qxa2 {[%clk 00:12:49]} {[%emt 00:00:42]} 24. Rd1 {[%clk 00:45:18]} {[%emt
00:00:21]} Qb3 {[%clk 00:09:40]} {[%emt 00:03:40]} 25. Rf1 {[%clk 00:43:59]}
{[%emt 00:01:48]} Ne5 {[%clk 00:08:45]} {[%emt 00:01:25]} 26. Re6 {[%clk
00:43:26]} {[%emt 00:01:03]} Rxe6 {[%clk 00:05:39]} {[%emt 00:03:36]} 27. Qf8#
{[%clk 00:43:47]} {[%emt 00:00:09]} 1-0

[Event "Minior-SM 2025"]
[Site "Uppsala, Sweden"]
[Date "2025.07.04"]
[Round "6.3"]
[White "Modig, Ville"]
[Black "Ostafiev, Sara"]
[Result "1-0"]
[TimeControl "90 min for 40 move + 30 min with an increment of 30 sec starting move 1"]
[WhiteFideId "1777858"]
[BlackFideId "1773615"]
[WhiteElo "1585"]
[BlackElo "1579"]

1. e4 {[%clk 01:30:58]} {[%emt 00:00:02]} e5 {[%clk 01:30:51]} {[%emt
00:00:09]} 2. Nf3 {[%clk 01:31:23]} {[%emt 00:00:04]} Nc6 {[%clk 01:31:11]}
{[%emt 00:00:11]} 3. Bc4 {[%clk 01:31:47]} {[%emt 00:00:06]} Nf6 {[%clk
01:31:27]} {[%emt 00:00:14]} 4. d3 {[%clk 01:32:13]} {[%emt 00:00:05]} h6
{[%clk 01:30:57]} {[%emt 00:00:58]} 5. Be3 {[%clk 01:32:32]} {[%emt 00:00:11]}
Bb4+ {[%clk 01:30:42]} {[%emt 00:00:45]} 6. c3 {[%clk 01:32:36]} {[%emt
00:00:27]} Ba5 {[%clk 01:30:52]} {[%emt 00:00:20]} 7. a4 {[%clk 01:31:55]}
{[%emt 00:01:11]} a6 {[%clk 01:20:38]} {[%emt 00:10:43]} 8. Nbd2 {[%clk
01:31:25]} {[%emt 00:01:00]} d5 {[%clk 01:14:22]} {[%emt 00:06:46]} 9. exd5
{[%clk 01:31:05]} {[%emt 00:00:50]} Nxd5 {[%clk 01:12:54]} {[%emt 00:01:59]} 10.
O-O {[%clk 01:30:03]} {[%emt 00:01:32]} Bg4 {[%clk 01:09:37]} {[%emt 00:03:46]}
11. Qb3 {[%clk 01:29:56]} {[%emt 00:00:34]} Be6 {[%clk 01:04:59]} {[%emt
00:05:11]} 12. Qxb7 {[%clk 01:27:06]} {[%emt 00:03:20]} Nde7 {[%clk 01:03:31]}
{[%emt 00:01:59]} 13. Qb3 {[%clk 01:26:25]} {[%emt 00:01:11]} Bxc4 {[%clk
00:58:37]} {[%emt 00:05:24]} 14. Nxc4 {[%clk 01:25:01]} {[%emt 00:01:53]} Ng6
{[%clk 00:55:05]} {[%emt 00:04:02]} 15. Qc2 {[%clk 01:21:32]} {[%emt 00:04:00]}
O-O {[%clk 00:51:26]} {[%emt 00:04:08]} 16. b4 {[%clk 01:20:03]} {[%emt
00:02:00]} Bb6 {[%clk 00:50:51]} {[%emt 00:01:05]} 17. Bxb6 {[%clk 01:19:54]}
{[%emt 00:00:39]} cxb6 {[%clk 00:50:58]} {[%emt 00:00:23]} 18. b5 {[%clk
01:20:11]} {[%emt 00:00:12]} axb5 {[%clk 00:47:50]} {[%emt 00:03:40]} 19. axb5
{[%clk 01:20:28]} {[%emt 00:00:12]} Nce7 {[%clk 00:43:48]} {[%emt 00:04:31]} 20.
Ncxe5 {[%clk 01:18:49]} {[%emt 00:02:09]} Nf4 {[%clk 00:41:59]} {[%emt
00:02:20]} 21. d4 {[%clk 01:16:03]} {[%emt 00:03:16]} Rc8 {[%clk 00:38:05]}
{[%emt 00:04:23]} 22. Qd2 {[%clk 01:13:33]} {[%emt 00:02:51]} Neg6 {[%clk
00:35:10]} {[%emt 00:03:34]} 23. Nxg6 {[%clk 01:12:08]} {[%emt 00:01:55]} fxg6
{[%clk 00:35:25]} {[%emt 00:00:16]} 24. Ne5 {[%clk 01:10:56]} {[%emt 00:01:39]}
Qg5 {[%clk 00:34:48]} {[%emt 00:01:09]} 25. Qa2+ {[%clk 01:08:33]} {[%emt
00:02:53]} Kh7 {[%clk 00:34:50]} {[%emt 00:00:29]} 26. g3 {[%clk 01:06:21]}
{[%emt 00:02:42]} Nh3+ {[%clk 00:25:44]} {[%emt 00:09:35]} 27. Kh1 {[%clk
00:57:59]} {[%emt 00:08:52]} Qf5 {[%clk 00:21:28]} {[%emt 00:04:46]} 28. Kg2
{[%clk 00:53:42]} {[%emt 00:04:48]} h5 {[%clk 00:18:18]} {[%emt 00:03:39]} 29.
Qd2 {[%clk 00:51:03]} {[%emt 00:03:08]} Ng5 {[%clk 00:15:37]} {[%emt 00:03:13]}
30. Qd3 {[%clk 00:46:47]} {[%emt 00:04:46]} Qh3+ {[%clk 00:14:27]} {[%emt
00:01:39]} 31. Kh1 {[%clk 00:46:13]} {[%emt 00:00:59]} Qe6 {[%clk 00:14:18]}
{[%emt 00:00:38]} 32. c4 {[%clk 00:42:16]} {[%emt 00:04:34]} Rf5 {[%clk
00:12:18]} {[%emt 00:02:30]} 33. f4 {[%clk 00:38:55]} {[%emt 00:03:51]} Nh3
{[%clk 00:12:16]} {[%emt 00:00:31]} 34. Kg2 {[%clk 00:36:04]} {[%emt 00:03:22]}
Rf6 {[%clk 00:11:42]} {[%emt 00:01:04]} 35. d5 {[%clk 00:34:53]} {[%emt
00:01:40]} Qe7 {[%clk 00:09:56]} {[%emt 00:02:16]} 36. Kxh3 {[%clk 00:34:12]}
{[%emt 00:01:12]} h4 {[%clk 00:09:31]} {[%emt 00:00:54]} 37. Kg2 {[%clk
00:33:27]} {[%emt 00:01:15]} Qb4 {[%clk 00:09:31]} {[%emt 00:00:31]} 38. Rab1
{[%clk 00:32:37]} {[%emt 00:01:19]} Qa4 {[%clk 00:09:19]} {[%emt 00:00:43]} 39.
Qb3 {[%clk 00:31:30]} {[%emt 00:01:36]} Qa5 {[%clk 00:09:29]} {[%emt 00:00:21]}
40. Rf2 {[%clk 00:30:36]} {[%emt 00:01:24]} Ra8 {[%clk 00:09:04]} {[%emt
00:00:55]} 41. Nc6 {[%clk 00:30:25]} {[%emt 00:00:41]} Qa3 {[%clk 00:08:50]}
{[%emt 00:00:44]} 42. Qxa3 {[%clk 00:30:14]} {[%emt 00:00:40]} Rxa3 {[%clk
00:09:13]} {[%emt 00:00:07]} 43. Rbb2 {[%clk 00:30:21]} {[%emt 00:00:24]} Ra1
{[%clk 00:09:09]} {[%emt 00:00:34]} 44. Rbd2 {[%clk 00:30:34]} {[%emt
00:00:17]} Rf5 {[%clk 00:07:55]} {[%emt 00:01:44]} 45. d6 {[%clk 00:30:49]}
{[%emt 00:00:14]} h3+ {[%clk 00:07:44]} {[%emt 00:00:41]} 46. Kxh3 {[%clk
00:30:49]} {[%emt 00:00:29]} Rg1 {[%clk 00:07:42]} {[%emt 00:00:33]} 47. g4
{[%clk 00:30:14]} {[%emt 00:01:05]} Rf7 {[%clk 00:06:32]} {[%emt 00:01:41]} 48.
Rg2 {[%clk 00:30:05]} {[%emt 00:00:39]} Ra1 {[%clk 00:05:53]} {[%emt 00:01:08]}
49. d7 {[%clk 00:30:25]} {[%emt 00:00:11]} Ra3+ {[%clk 00:05:33]} {[%emt
00:00:50]} 50. Rg3 {[%clk 00:30:29]} {[%emt 00:00:25]} Rxg3+ {[%clk 00:04:34]}
{[%emt 00:01:30]} 51. Kxg3 {[%clk 00:30:34]} {[%emt 00:00:24]} g5 {[%clk
00:04:52]} {[%emt 00:00:13]} 52. d8=Q {[%clk 00:30:22]} {[%emt 00:00:42]} gxf4+
{[%clk 00:05:13]} {[%emt 00:00:08]} 53. Kf3 {[%clk 00:30:45]} {[%emt 00:00:07]}
Rf6 {[%clk 00:05:34]} {[%emt 00:00:10]} 54. g5 {[%clk 00:29:57]} {[%emt
00:01:17]} Rg6 {[%clk 00:05:02]} {[%emt 00:01:03]} 55. Ne7 {[%clk 00:29:56]}
{[%emt 00:00:29]} Rxg5 {[%clk 00:05:11]} {[%emt 00:00:22]} 56. Qg8+ {[%clk
00:30:07]} {[%emt 00:00:19]} Kh6 {[%clk 00:05:29]} {[%emt 00:00:13]} 57. Qh8#
{[%clk 00:30:32]} {[%emt 00:00:04]} 1-0